bitfinex-derivatives/quotes_SOLF0:USTF0_20250109
["timestamp","ask_amount","ask_price","bid_price","bid_amount"]
[1736398218083,9.05737741,194.84,194.79,2.5678]
[1736398218785,6.48997741,194.82,194.77,2.5681]
[1736398219183,6.48997741,194.82,194.76,6.48997741]
[1736398219486,6.48997741,194.82,194.79,2.5679]
[1736398219680,6.48997741,194.82,194.76,6.48997741]
[1736398219886,2.94,194.86,194.76,2.5683]
[1736398220083,6.48997741,194.8,194.73,2.94]
[1736398220289,6.48997741,194.78,194.72,6.48997741]
[1736398220975,6.48997741,194.78,194.75,2.5684]
[1736398222789,6.48997741,194.78,194.72,6.48997741]
[1736398222990,6.48997741,194.76,194.7,1.5495]
[1736398223187,6.48997741,194.76,194.69,6.48997741]
[1736398223382,2.94,194.8,194.66,2.94]
[1736398223383,6.48997741,194.74,194.67,6.48997741]
[1736398223979,6.48997741,194.74,194.69,2.5692]
[1736398225186,6.48997741,194.74,194.7,2.5691]
[1736398225386,6.48997741,194.74,194.67,6.48997741]
[1736398226682,6.48997741,194.74,194.7,2.569]
[1736398227192,6.48997741,194.74,194.67,6.48997741]
[1736398227387,6.48997741,194.72,194.68,2.5693]
[1736398227591,6.48997741,194.72,194.65,6.48997741]
[1736398228493,9.05897741,194.72,194.67,2.5695]
[1736398228792,6.48997741,194.7,194.63,6.48997741]
[1736398228991,9.42997741,194.7,194.63,6.48997741]
[1736398229189,9.42997741,194.7,194.66,2.5697]
[1736398229992,9.42997741,194.7,194.65,2.5698]
[1736398230291,2.94,194.7,194.63,6.48997741]
[1736398230695,2.94,194.7,194.67,2.5695]
[1736398230895,2.94,194.7,194.67,6.48997741]
[1736398231096,6.48997741,194.73,194.67,6.48997741]
[1736398232192,6.48997741,194.73,194.69,2.5692]
[1736398232795,6.48997741,194.73,194.67,6.48997741]
[1736398232990,6.48997741,194.73,194.68,2.5694]
[1736398233698,6.48997741,194.73,194.69,2.5692]
[1736398234197,6.48997741,194.73,194.67,6.48997741]
[1736398234896,6.48997741,194.73,194.69,2.5692]
[1736398238299,9.42997741,194.75,194.7,2.5691]
[1736398238499,6.48997741,194.75,194.7,2.5691]
[1736398239099,9.05857741,194.75,194.7,2.5691]
[1736398239696,9.05857741,194.75,194.69,2.5693]
[1736398240404,6.48997741,194.73,194.67,6.48997741]
[1736398240595,6.48997741,194.71,194.63,6.48997741]
[1736398241004,9.42997741,194.71,194.63,6.48997741]
[1736398242202,11.99897741,194.71,194.63,6.48997741]
[1736398242507,9.42997741,194.71,194.63,6.48997741]
[1736398242702,2.5694,194.68,194.63,9.06007741]
[1736398244104,9.05967741,194.67,194.6,6.48997741]
[1736398244300,6.48997741,194.67,194.6,6.48997741]
[1736398244809,2.5697,194.66,194.61,2.5702]
[1736398245003,6.48997741,194.67,194.6,6.48997741]
[1736398245405,9.27520083,194.76,194.62,6.48997741]
[1736398245608,6.48997741,194.7,194.62,6.48997741]
[1736398245803,9.42997741,194.7,194.62,6.48997741]
[1736398246408,11.99927741,194.7,194.65,2.5698]
[1736398248105,9.42997741,194.7,194.62,6.48997741]
[1736398248310,9.42997741,194.7,194.63,2.5701]
[1736398248311,9.05937741,194.68,194.63,2.5701]
[1736398249213,6.48997741,194.68,194.62,6.48997741]
[1736398249411,2.5696,194.67,194.62,9.06017741]
[1736398250615,6.48997741,194.68,194.63,2.57]
[1736398250616,9.05937741,194.68,194.63,2.57]
[1736398250812,9.05937741,194.68,194.62,6.48997741]
[1736398252213,9.05937741,194.68,194.64,2.5699]
[1736398252415,2.5693,194.69,194.62,6.48997741]
[1736398254116,2.5693,194.69,194.64,2.5699]
[1736398254416,2.5693,194.69,194.62,6.48997741]
[1736398256008,2.5693,194.69,194.64,2.5699]
[1736398256413,2.5693,194.69,194.62,6.48997741]
[1736398256617,2.5693,194.69,194.65,2.5698]
[1736398257911,2.5693,194.69,194.62,6.48997741]
[1736398258114,2.5693,194.69,194.64,2.5699]
[1736398258416,2.5693,194.69,194.62,6.48997741]
[1736398258717,2.5693,194.69,194.65,2.5698]
[1736398259919,11.99917741,194.7,194.66,2.5697]
[1736398261218,2.94,194.7,194.67,2.5695]
[1736398261413,9.27520083,194.77,194.57,2.94]
[1736398261414,9.27520083,194.77,194.66,6.48997741]
[1736398261619,6.48997741,194.75,194.68,6.48997741]
[1736398261820,9.05847741,194.75,194.7,2.5691]
[1736398265518,6.48997741,194.74,194.71,2.569]
[1736398265723,6.48997741,194.74,194.68,6.48997741]
[1736398265921,6.48997741,194.74,194.66,6.48997741]
[1736398267424,6.48997741,194.72,194.64,6.48997741]
[1736398267821,6.48997741,194.7,194.64,6.48997741]
[1736398268018,6.48997741,194.7,194.63,3.0635]
[1736398268218,9.42997741,194.7,194.63,1.5231]
[1736398268523,11.99927741,194.7,194.63,1.5231]
[1736398269316,9.42997741,194.7,194.64,6.48997741]
[1736398269623,9.42997741,194.7,194.66,2.5696]
[1736398270721,9.42997741,194.7,194.65,2.5698]
[1736398270920,9.42997741,194.7,194.62,6.48997741]
[1736398271119,6.48997741,194.68,194.62,6.48997741]
[1736398271325,6.48997741,194.68,194.61,2.5703]
[1736398271627,2.5696,194.67,194.6,6.48997741]
[1736398272225,2.5696,194.67,194.62,2.5701]
[1736398272821,2.5697,194.66,194.62,2.5701]
[1736398273423,2.57,194.64,194.6,2.5705]
[1736398273615,2.94,194.63,194.56,6.48997741]
[1736398275226,2.94,194.63,194.58,2.5707]
[1736398275421,6.48997741,194.64,194.56,6.48997741]
[1736398275625,2.94,194.63,194.58,6.48997741]
[1736398276319,2.94,194.63,194.59,2.5705]
[1736398279019,2.94,194.63,194.6,2.5705]
[1736398282024,2.94,194.62,194.6,2.5705]
[1736398284127,2.94,194.62,194.58,6.48997741]
[1736398284128,2.5697,194.66,194.58,6.48997741]
[1736398284334,2.94,194.63,194.58,6.48997741]
[1736398284630,6.48997741,194.69,194.62,6.48997741]
[1736398285033,6.48997741,194.69,194.64,6.48997741]
[1736398285730,6.48997741,194.69,194.66,2.5696]
[1736398286431,6.48997741,194.69,194.64,2.5699]
[1736398287130,9.05927741,194.69,194.64,2.5699]
[1736398288729,6.48997741,194.67,194.64,2.5699]
[1736398288919,6.48997741,194.67,194.63,2.5701]
[1736398290129,6.48997741,194.69,194.62,6.48997741]
[1736398290930,9.05927741,194.69,194.64,2.5699]
[1736398294532,2.94,194.71,194.62,6.48997741]
[1736398294832,6.48997741,194.69,194.66,2.5696]
[1736398295733,6.48997741,194.69,194.64,2.5699]
[1736398296330,6.48997741,194.67,194.6,6.48997741]
[1736398296629,1.6081,194.77,194.64,6.48997741]
[1736398296831,6.48997741,194.73,194.66,6.48997741]
[1736398297833,9.42997741,194.73,194.69,2.5692]
[1736398298033,9.42997741,194.73,194.66,6.48997741]
[1736398298234,2.94,194.73,194.66,6.48997741]
[1736398298428,1.5365,194.79,194.68,6.48997741]
[1736398298429,6.48997741,194.75,194.68,6.48997741]
[1736398298631,9.42997741,194.77,194.7,6.48997741]
[1736398299433,6.48997741,194.77,194.7,6.48997741]
[1736398299638,15.81958316,194.81,194.74,6.48997741]
[1736398299839,18.75958316,194.81,194.74,6.48997741]
[1736398300042,12.26960575,194.81,194.76,6.48997741]
[1736398300239,9.32960575,194.81,194.8,2.5678]
[1736398300433,6.48997741,194.83,194.76,6.48997741]
[1736398300741,6.48997741,194.83,194.79,2.5679]
[1736398301141,6.48997741,194.83,194.76,6.48997741]
[1736398301337,2.94,194.84,194.78,6.48997741]
[1736398301648,6.48997741,194.86,194.8,6.48997741]
[1736398302741,6.48997741,194.86,194.78,7.99557741]
[1736398303036,6.48997741,194.84,194.78,7.99557741]
[1736398303741,6.48997741,194.84,194.78,6.48997741]
[1736398303938,6.48997741,194.84,194.68,192.5033]
[1736398303939,9.42997741,194.84,194.76,6.48997741]
[1736398304141,6.48997741,194.82,194.76,6.48997741]
[1736398304545,2.94,194.84,194.78,6.48997741]
[1736398306150,2.94,194.84,194.8,2.5678]
[1736398307248,6.48997741,194.88,194.8,6.48997741]
[1736398307549,2.94,194.88,194.78,10.12375591]
[1736398307746,2.94,194.89,194.79,4.4397]
[1736398307948,0.93260392,194.88,194.79,4.4397]
[1736398308148,2.94,194.89,194.79,4.4397]
[1736398309452,2.94,194.89,194.82,2.5675]
[1736398309653,2.94,194.89,194.79,4.4397]
[1736398310455,5.5067,194.89,194.82,2.5676]
[1736398310751,0.932584,194.88,194.79,4.4397]
[1736398311054,2.5669,194.88,194.8,2.5677]
[1736398311251,2.5669,194.88,194.79,4.4397]
[1736398311451,2.5669,194.88,194.81,2.5676]
[1736398311853,2.5673,194.85,194.79,1.4997]
[1736398312052,2.94,194.89,194.79,4.0676]
[1736398312256,0.93270499,194.88,194.79,4.0676]
[1736398312456,2.5673,194.85,194.79,4.0676]
[1736398312658,10.12375591,194.88,194.78,10.12375591]
[1736398312851,0.93272966,194.87,194.78,2.5681]
[1736398313454,2.5673,194.84,194.77,2.5681]
[1736398313646,2.5673,194.84,194.75,11.60945591]
[1736398315256,2.5673,194.84,194.78,10.12375591]
[1736398316056,2.5673,194.84,194.79,2.5679]
[1736398316353,10.12375591,194.88,194.79,2.5679]
[1736398316559,2.5675,194.83,194.78,10.12375591]
[1736398316758,2.5675,194.83,194.78,12.69175591]
[1736398317558,10.12375591,194.88,194.78,10.12375591]
[1736398317758,2.5674,194.84,194.79,2.5679]
[1736398317958,10.12375591,194.88,194.79,2.5679]
[1736398318155,3.87272714,194.87,194.78,10.12375591]
[1736398318355,2.5676,194.83,194.78,10.12375591]
[1736398319861,2.5676,194.83,194.78,12.69185591]
[1736398322363,2.94,194.87,194.75,11.60945591]
[1736398322559,0.93282832,194.86,194.75,11.60945591]
[1736398323064,2.5677,194.82,194.76,2.5682]
[1736398323260,5.5077,194.82,194.76,2.5682]
[1736398323459,2.94,194.82,194.76,2.5682]
[1736398324061,2.5678,194.81,194.76,2.5682]
[1736398324364,2.94,194.82,194.72,10.12375591]
[1736398324563,2.5682,194.77,194.72,10.12375591]
[1736398324862,13.06375591,194.82,194.71,4.1784]
[1736398325058,0.93300795,194.81,194.71,1.6095]
[1736398325662,0.93300795,194.81,194.71,4.1785]
[1736398326068,0.93300795,194.81,194.71,1.6095]
[1736398326566,0.9330223,194.8,194.72,2.5689]
[1736398326761,13.06375591,194.82,194.72,2.5689]
[1736398326962,0.9330223,194.81,194.72,2.5689]
[1736398327162,2.568,194.79,194.72,2.5689]
[1736398327362,13.06375591,194.82,194.72,2.5689]
[1736398327567,0.93297748,194.81,194.71,1.6095]
[1736398327766,2.5685,194.76,194.7,2.5691]
[1736398328066,5.5085,194.76,194.7,2.5691]
[1736398328265,5.5085,194.76,194.69,10.12375591]
[1736398328465,5.5085,194.76,194.71,2.569]
[1736398329273,2.5687,194.74,194.69,9.05679783]
[1736398329565,9.42759783,194.76,194.69,6.48759783]
[1736398330070,2.5689,194.72,194.69,6.48759783]
[1736398331262,2.5688,194.73,194.69,6.48759783]
[1736398331662,9.42759783,194.76,194.69,6.48759783]
[1736398331868,2.5689,194.72,194.67,6.48759783]
[1736398332163,6.48759783,194.74,194.67,6.48759783]
[1736398332370,2.5691,194.71,194.67,6.48759783]
[1736398332669,5.5091,194.71,194.67,6.48759783]
[1736398333459,2.5692,194.7,194.65,2.5697]
[1736398333665,2.5692,194.7,194.66,6.48759783]
[1736398334371,2.94,194.71,194.66,6.48759783]
[1736398334773,5.5091,194.71,194.66,6.48759783]
[1736398336674,2.94,194.71,194.67,2.5695]
[1736398337175,2.94,194.71,194.66,6.48759783]
[1736398338171,5.509,194.71,194.66,6.48759783]
[1736398340575,2.5692,194.7,194.66,6.48759783]
[1736398343978,2.5695,194.68,194.62,4.127]
[1736398344174,2.5695,194.68,194.63,6.48759783]
[1736398345177,2.5695,194.68,194.63,9.05769783]
[1736398346275,2.94,194.71,194.66,2.5697]
[1736398346580,2.94,194.71,194.67,6.48759783]
[1736398347078,9.42759783,194.71,194.64,6.48759783]
[1736398348076,2.5695,194.68,194.64,6.48759783]
[1736398349376,2.5692,194.7,194.64,6.48759783]
[1736398350070,2.5692,194.7,194.65,2.5697]
[1736398350280,2.94,194.71,194.64,6.48759783]
[1736398352077,5.5091,194.71,194.66,2.5696]
[1736398353976,2.5691,194.71,194.66,9.05719783]
[1736398354183,2.5691,194.71,194.62,1.5569]
[1736398354184,6.48759783,194.75,194.68,6.48759783]
[1736398354385,2.94,194.74,194.68,6.48759783]
[1736398355082,2.94,194.73,194.69,2.5692]
[1736398355386,2.94,194.73,194.68,6.48759783]
[1736398356085,2.5689,194.72,194.68,6.48759783]
[1736398357779,9.42759783,194.73,194.68,6.48759783]
[1736398358084,9.42759783,194.73,194.66,6.48759783]
[1736398358784,2.5693,194.7,194.66,6.48759783]
[1736398358985,9.42759783,194.73,194.66,6.48759783]
[1736398359782,2.5691,194.71,194.66,6.48759783]
[1736398362483,2.5692,194.7,194.66,6.48759783]
[1736398362987,2.5692,194.7,194.65,2.5697]
[1736398368590,2.5692,194.7,194.64,6.48759783]
[1736398368591,6.48759783,194.71,194.63,1.6127]
[1736398368891,6.48759783,194.69,194.62,8.04449783]
[1736398369090,2.94,194.68,194.62,8.04449783]
[1736398370198,2.5696,194.67,194.62,10.61469783]
[1736398375296,2.5696,194.67,194.63,2.5701]
[1736398380796,2.94,194.68,194.66,2.5696]
[1736398380995,2.94,194.68,194.64,6.48759783]
[1736398381398,2.94,194.69,194.64,6.48759783]
[1736398381697,2.94,194.69,194.65,2.5698]
[1736398381906,2.94,194.69,194.64,6.48759783]
[1736398383206,2.94,194.69,194.66,2.5696]
[1736398384200,2.94,194.69,194.65,2.5698]
[1736398384799,5.5093,194.69,194.64,2.5699]
[1736398387102,2.94,194.69,194.63,6.48759783]
[1736398387297,6.48759783,194.74,194.67,6.48759783]
[1736398387501,2.94,194.73,194.67,6.48759783]
[1736398387890,2.94,194.73,194.68,2.5694]
[1736398390101,5.5089,194.73,194.68,2.5694]
[1736398395602,6.48759783,194.72,194.66,2.5696]
[1736398395798,6.48759783,194.7,194.64,6.48759783]
[1736398397103,9.05689783,194.7,194.65,2.5698]
[1736398403715,2.5693,194.7,194.65,2.5698]
[1736398403913,2.5689,194.72,194.66,6.48759783]
[1736398404113,2.94,194.71,194.66,6.48759783]
[1736398405220,2.94,194.71,194.67,2.5696]
[1736398405813,2.94,194.71,194.66,6.48759783]
[1736398406013,2.94,194.71,194.66,9.05719783]
[1736398408522,5.509,194.71,194.66,9.05719783]
[1736398408722,2.94,194.71,194.66,6.48759783]
[1736398408918,2.94,194.71,194.66,9.05729783]
[1736398410223,5.509,194.71,194.66,9.05729783]
[1736398419318,2.94,194.71,194.67,2.5695]
[1736398427020,2.5685,194.75,194.68,6.48759783]
[1736398427226,10.28643493,194.79,194.7,6.48759783]
[1736398427421,10.28643493,194.79,194.63,4.4686]
[1736398427422,9.42759783,194.78,194.72,6.48759783]
[1736398427827,2.5683,194.77,194.63,4.4686]
[1736398428029,6.48759783,194.76,194.7,6.48759783]
[1736398428325,6.48759783,194.76,194.63,4.4686]
[1736398428528,6.48759783,194.76,194.69,6.48759783]
[1736398430231,6.48759783,194.76,194.69,9.05689783]
[1736398430232,2.5687,194.74,194.69,9.05689783]
[1736398430830,9.05629783,194.74,194.69,6.48759783]
[1736398431037,5.5089,194.73,194.67,6.48759783]
[1736398431535,5.5089,194.73,194.66,2.5697]
[1736398431934,5.5089,194.73,194.67,6.48759783]
[1736398432133,5.5089,194.73,194.67,9.05709783]
[1736398433629,5.5089,194.73,194.68,2.5694]
[1736398434031,2.94,194.73,194.69,6.48759783]
[1736398434332,2.94,194.73,194.7,2.569]
[1736398434531,2.94,194.73,194.69,6.48759783]
[1736398435537,2.94,194.73,194.7,2.5691]
[1736398437240,2.94,194.73,194.69,6.48759783]
[1736398437441,2.94,194.73,194.7,2.5691]
[1736398446444,2.94,194.73,194.69,6.48759783]
[1736398446640,2.94,194.73,194.71,2.569]
[1736398455847,9.42759783,194.73,194.69,2.5692]
[1736398456052,9.42759783,194.73,194.66,6.48759783]
[1736398456449,9.42759783,194.73,194.63,1.5286]
[1736398456749,9.42759783,194.73,194.66,6.48759783]
[1736398456951,11.99649783,194.73,194.68,2.5693]
[1736398457952,2.5689,194.72,194.67,2.5695]
[1736398458153,6.48759783,194.71,194.63,1.5286]
[1736398458352,6.48759783,194.71,194.64,6.48759783]
[1736398458550,9.05669783,194.71,194.66,2.5696]
[1736398460250,2.5689,194.72,194.68,2.5694]
[1736398460456,9.42759783,194.73,194.68,2.5694]
[1736398462046,9.42759783,194.73,194.66,6.48759783]
[1736398462252,2.5689,194.72,194.66,6.48759783]
[1736398463257,2.5689,194.72,194.67,2.5695]
[1736398464254,2.94,194.72,194.69,2.5692]
[1736398467057,2.94,194.72,194.68,6.48759783]
[1736398467259,2.94,194.72,194.68,9.05699783]
[1736398474263,5.5089,194.72,194.68,6.48759783]
[1736398478865,2.5691,194.71,194.66,6.48759783]
[1736398480879,2.94,194.72,194.65,2.5698]
[1736398481175,2.94,194.72,194.65,6.48759783]
[1736398483180,2.5694,194.69,194.65,6.48759783]
[1736398486582,2.94,194.72,194.67,6.48759783]
[1736398486979,2.94,194.75,194.71,6.48759783]
[1736398487278,5.5085,194.75,194.71,6.48759783]
[1736398487478,2.5685,194.75,194.71,6.48759783]
[1736398490292,5.47625753,194.81,194.73,6.48759783]
[1736398490584,178.75512569,194.84,194.79,6.48759783]
[1736398490787,178.75512569,194.84,194.81,6.48759783]
[1736398491590,175.81512569,194.84,194.81,6.48759783]
[1736398491784,2.94,194.86,194.81,6.48759783]
[1736398491979,82.7268,194.89,194.81,9.05529783]
[1736398492190,2.94,194.88,194.83,6.48759783]
[1736398492689,2.94,194.88,194.83,9.05499783]
[1736398492891,2.94,194.88,194.83,2.5674]
[1736398493085,2.94,194.88,194.83,9.05499783]
[1736398493892,6.48759783,194.9,194.83,9.05499783]
[1736398494086,2.94,194.88,194.83,9.05499783]
[1736398495185,2.94,194.88,194.83,6.48759783]
[1736398497984,2.94,194.88,194.84,2.5672]
[1736398498289,2.94,194.88,194.85,6.48759783]
[1736398499887,9.05399783,194.91,194.85,6.48759783]
[1736398500092,2.92,194.89,194.85,6.48759783]
[1736398501692,2.92,194.92,194.87,6.48759783]
[1736398501995,2.92,194.93,194.89,6.48759783]
[1736398502890,5.4861,194.93,194.89,6.48759783]
[1736398503792,2.5661,194.93,194.89,6.48759783]
[1736398503989,2.92,194.92,194.89,6.48759783]
[1736398504393,5.4861,194.93,194.89,6.48759783]
[1736398506894,5.4861,194.93,194.87,9.05449783]
[1736398509496,6.48759783,194.9,194.8,3.054]
[1736398509690,6.48759783,194.9,194.83,6.48759783]
[1736398511298,9.40759783,194.93,194.85,6.48759783]
[1736398511698,2.92,194.93,194.89,6.48759783]
[1736398512091,2.5656,194.97,194.91,9.05389783]
[1736398512295,2.92,194.95,194.91,9.05389783]
[1736398512897,2.92,194.96,194.91,9.05389783]
[1736398513791,5.4857,194.96,194.91,6.48759783]
[1736398516200,2.5659,194.95,194.91,6.48759783]
[1736398517405,9.40759783,194.96,194.91,6.48759783]
[1736398517600,11.97339783,194.96,194.91,6.48759783]
[1736398517801,5.4858,194.96,194.91,6.48759783]
[1736398518299,9.40759783,194.96,194.91,6.48759783]
[1736398518504,2.5659,194.95,194.91,6.48759783]
[1736398521207,2.5659,194.95,194.89,9.05419783]
[1736398522905,6.48759783,194.94,194.86,9.05449783]
[1736398523298,2.5664,194.92,194.86,9.05449783]
[1736398523497,6.48759783,194.94,194.86,2.5669]
[1736398523702,6.48759783,194.94,194.86,9.05449783]
[1736398524407,2.5663,194.92,194.86,9.05449783]
[1736398524609,2.92,194.91,194.88,6.48759783]
[1736398532915,10.16786558,194.99,194.9,6.48759783]
[1736398533113,10.16786558,194.99,194.82,2.92]
[1736398533114,0.93230527,194.98,194.92,6.48759783]
[1736398533717,2.92,194.97,194.92,6.48759783]
[1736398534216,5.4857,194.97,194.92,6.48759783]
[1736398535112,2.5658,194.96,194.92,6.48759783]
[1736398535918,2.92,194.97,194.92,6.48759783]
[1736398536116,2.5659,194.95,194.92,6.48759783]
[1736398536312,2.92,194.97,194.92,6.48759783]
[1736398536518,2.5657,194.96,194.92,6.48759783]
[1736398536915,2.92,194.97,194.92,6.48759783]
[1736398541324,2.5657,194.96,194.92,6.48759783]
[1736398548729,2.92,194.97,194.92,6.48759783]
[1736398548928,5.4856,194.97,194.92,6.48759783]
[1736398550826,2.5657,194.96,194.92,6.48759783]
[1736398552821,5.4856,194.97,194.94,6.48759783]
[1736398556026,15.19716341,195.03,194.96,6.48759783]
[1736398556227,2.92,195.0,194.96,6.48759783]
[1736398556527,15.19716341,195.03,194.96,6.48759783]
[1736398556726,3.85198363,195.02,194.96,6.48759783]
[1736398556919,2.92,195.02,194.96,6.48759783]
[1736398557120,5.4849,195.02,194.96,9.05329783]
[1736398557321,2.92,195.02,194.96,6.48759783]
[1736398558221,0.932022,195.01,194.96,6.48759783]
[1736398558420,2.5652,195.0,194.96,6.48759783]
[1736398559032,2.5652,195.0,194.94,2.566]
[1736398559234,2.5652,195.0,194.95,6.48759783]
[1736398559830,2.5652,195.0,194.95,9.05349783]
[1736398560030,2.5652,195.0,194.97,6.48759783]
[1736398565535,2.92,195.01,194.97,6.48759783]
[1736398565536,5.4851,195.01,194.97,6.48759783]
[1736398570335,2.5649,195.03,194.99,6.48759783]
[1736398570640,2.92,195.04,195.01,6.48759783]
[1736398571035,8.26813934,195.06,195.01,6.48759783]
[1736398571227,8.26813934,195.06,195.01,9.05269783]
[1736398571228,0.93184337,195.05,195.01,9.05269783]
[1736398571840,2.92,195.06,195.01,9.05269783]
[1736398572133,0.93179902,195.05,195.01,6.48759783]
[1736398572735,2.92,195.06,195.01,6.48759783]
[1736398572942,0.93179903,195.05,195.01,6.48759783]
[1736398573135,5.4844,195.06,195.01,6.48759783]
[1736398575038,2.5644,195.06,195.03,6.48759783]
[1736398575238,2.92,195.07,195.03,6.48759783]
[1736398576437,6.48759783,195.1,195.05,6.48759783]
[1736398576438,2.5639,195.1,195.05,6.48759783]
[1736398576639,2.92,195.09,195.07,6.48759783]
[1736398577843,2.92,195.1,195.07,6.48759783]
[1736398578042,6.48759783,195.14,195.07,6.48759783]
[1736398578242,2.5638,195.11,195.07,6.48759783]
[1736398578442,0.93157012,195.1,195.07,6.48759783]
[1736398580743,2.5638,195.11,195.07,6.48759783]
[1736398580944,0.93156852,195.1,195.07,6.48759783]
[1736398581240,2.5638,195.11,195.07,6.48759783]
[1736398581441,0.93156539,195.1,195.07,6.48759783]
[1736398582244,0.93156539,195.1,195.0,2.9757]
[1736398582447,6.48759783,195.08,195.0,2.9757]
[1736398582646,2.92,195.07,195.02,6.48759783]
[1736398582944,2.5644,195.06,195.02,6.48759783]
[1736398586147,2.92,195.07,195.04,6.48759783]
[1736398586748,2.92,195.07,195.04,9.05229783]
[1736398591047,2.92,195.07,195.06,6.48759783]
[1736398595451,2.92,195.07,195.04,6.48759783]
[1736398595651,2.92,195.07,195.04,9.05229783]
[1736398597357,2.92,195.07,195.06,6.48759783]
[1736398600665,6.48759783,195.15,195.06,6.48759783]
[1736398600961,3.85144529,195.14,195.08,6.48759783]
[1736398601160,8.24480742,195.18,195.12,6.48759783]
[1736398601361,0.93124423,195.17,195.12,6.48759783]
[1736398601556,3.85124423,195.16,195.12,9.05119783]
[1736398601756,2.92,195.16,195.12,9.05119783]
[1736398602462,2.92,195.15,195.12,9.05119783]
[1736398603067,2.92,195.17,195.14,6.48759783]
[1736398603264,2.92,195.17,195.16,6.48759783]
[1736398603467,5.46578083,195.19,195.16,6.48759783]
[1736398603669,8.38578083,195.19,195.16,6.48759783]
[1736398604671,2.92,195.19,195.16,6.48759783]
[1736398605070,2.5625,195.21,195.16,6.48759783]
[1736398605071,2.5623,195.22,195.16,9.05069783]
[1736398605264,2.92,195.21,195.18,6.48759783]
[1736398605464,2.5623,195.22,195.18,6.48759783]
[1736398605664,1.4891,195.26,195.2,6.48759783]
[1736398605865,2.92,195.25,195.22,6.48759783]
[1736398606267,2.92,195.25,195.22,9.04989783]
[1736398607373,2.92,195.25,195.24,6.48759783]
[1736398607570,2.92,195.27,195.24,6.48759783]
[1736398607965,212.0170011,195.41,195.26,6.48759783]
[1736398608170,9.04789783,195.38,195.31,6.48759783]
[1736398608363,2.5603,195.38,195.31,9.40759783]
[1736398608569,6.48759783,195.39,195.33,6.48759783]
[1736398609074,175.81512569,195.5,195.37,6.48759783]
[1736398609272,0.93011446,195.49,195.42,6.48759783]
[1736398609575,7.41771229,195.49,195.42,9.40759783]
[1736398609874,0.92986576,195.48,195.42,6.48759783]
[1736398610063,3.0105,195.54,195.46,6.48759783]
[1736398610064,6.48759783,195.54,195.46,6.48759783]
[1736398610266,6.48759783,195.54,195.32,3.0254]
[1736398610267,0.92975295,195.53,195.48,6.48759783]
[1736398610473,6.48759783,195.54,195.48,6.48759783]
[1736398611075,0.9296781,195.53,195.46,6.48759783]
[1736398611370,2.94,195.54,195.32,3.0254]
[1736398611575,10.98765768,195.53,195.41,10.057962]
[1736398611772,2.5588,195.49,195.41,10.057962]
[1736398611968,2.94,195.48,195.38,10.057962]
[1736398612371,2.94,195.48,195.38,12.618162]
[1736398613178,2.5591,195.47,195.38,10.057962]
[1736398613680,2.94,195.48,195.38,10.057962]
[1736398613875,2.94,195.48,195.38,12.618162]
[1736398614074,2.94,195.48,195.41,10.057962]
[1736398614275,0.92980052,195.47,195.41,10.057962]
[1736398615177,0.92980052,195.47,195.38,10.057962]
[1736398615678,0.92987478,195.46,195.38,10.057962]
[1736398615878,0.92987478,195.45,195.38,10.057962]
[1736398616079,0.92987478,195.44,195.35,10.057962]
[1736398616277,2.94,195.43,195.35,10.057962]
[1736398616578,2.94,195.42,195.35,10.057962]
[1736398618278,5.4997,195.42,195.35,10.057962]
[1736398618580,2.94,195.41,195.35,10.057962]
[1736398619279,2.94,195.41,195.37,2.5603]
[1736398620977,2.94,195.46,195.38,2.5602]
[1736398621275,2.94,195.46,195.38,12.618162]
[1736398621779,2.5594,195.44,195.38,10.057962]
[1736398621981,2.5594,195.44,195.36,2.5604]
[1736398622184,2.5594,195.44,195.35,10.057962]
[1736398622485,2.5594,195.44,195.37,2.5603]
[1736398622879,0.92995879,195.43,195.35,10.057962]
[1736398623083,2.94,195.46,195.35,10.057962]
[1736398623284,0.92998362,195.45,195.35,10.057962]
[1736398623484,0.9299835,195.44,195.35,10.057962]
[1736398623681,0.9299835,195.43,195.35,10.057962]
[1736398623985,4.4259,195.46,195.35,10.057962]
[1736398624282,0.93000001,195.45,195.35,10.057962]